{"text_format":"2","workbook":"xlsx","n_sheets":4,"sheets":["Főösszesítő","Építész","Gépész összesítő","Gépész"],"not_rendered":{"charts":0,"images":0,"macros":0,"external_links":0,"defined_names":13,"comments":0,"pivot_tables":0},"unopened":[],"bounds":{"document_bytes":16777216,"sheet_cells":100000,"run_cost":"one","rows_first":2000,"rows_last":500,"rows_between":2000,"halvings":0,"cell_chars":16384,"cell_head_chars":4096},"cells_cut":0,"cells_raw":0,"read":"whole","date_system":"1900"}

{"sheet":"Főösszesítő","index":0,"n_rows":30,"n_cols":10,"rows_kept":30,"cut":false,"hidden":false,"merged":[[25,7,25,9],[27,7,27,9],[29,7,29,9],[0,0,0,9],[1,0,1,9],[2,0,2,9],[4,0,4,9],[6,0,6,9],[7,0,7,9],[3,0,3,9]]}
["FŐÖSSZESÍTŐ"]
["A"]
["SZTE - MEZŐGAZDASÁGI KAR"]
["6000 HÓDMEZŐVÁSÁRHELY, ANDRÁSSY ÚT 15. SZÁM ALATTI"]
["III., IV. SZÁMÚ ÉPÜLETSZÁRNY VIZESBLOKKOK"]
[]
["FELÚJÍTÁSI"]
["MUNKÁIHOZ"]
{"$rows_empty":10}
[null,"Építészeti munkák",{"$nulls":5},{"$f":"Építész!K42","v":0},null,{"$f":"Építész!M42","v":0}]
[]
[null,"Épületgépészeti  munkák",{"$nulls":5},{"$f":"'Gépész összesítő'!B10","v":0},null,{"$f":"'Gépész összesítő'!C10","v":0}]
[]
[]
[{"$nulls":7},{"$f":"SUM(H19:H23)","v":0},null,{"$f":"SUM(J19:J23)","v":0}]
[]
[{"$nulls":6},"Nettó vállalási ár:",{"$f":"H24+J24","v":0}]
[]
[{"$nulls":6},"Áfa 27%:",{"$f":"ROUND(H26*0.27,)","v":0}]
[]
[{"$nulls":6},"Bruttó vállalási ár:",{"$f":"H26+H28","v":0}]

{"sheet":"Építész","index":1,"n_rows":529,"n_cols":13,"rows_kept":529,"cut":false,"hidden":false,"merged":[[49,0,49,12],[51,0,51,12],[52,0,52,12],[54,0,54,12],[528,10,528,12],[87,10,87,12],[100,10,100,12],[221,10,221,12],[250,10,250,12],[345,10,345,12],[432,10,432,12],[118,10,118,12],[184,10,184,12],[510,10,510,12],[3,0,3,12],[48,0,48,12],[7,0,7,12],[0,0,0,12],[1,0,1,12],[2,0,2,12],[4,0,4,12],[6,0,6,12],[9,0,9,12],[43,10,43,12],[45,0,45,12],[46,0,46,12],[47,0,47,12]]}
["MUNKANEMENKÉNTI ÖSSZESÍTŐ"]
[{"$f":"Főösszesítő!$A$2","v":"A"}]
[{"$f":"Főösszesítő!$A$3","v":"SZTE - MEZŐGAZDASÁGI KAR"}]
[{"$f":"Főösszesítő!$A$4","v":"6000 HÓDMEZŐVÁSÁRHELY, ANDRÁSSY ÚT 15. SZÁM ALATTI"}]
[{"$f":"Főösszesítő!$A$5","v":"III., IV. SZÁMÚ ÉPÜLETSZÁRNY VIZESBLOKKOK"}]
[]
[{"$f":"Főösszesítő!$A$7","v":"FELÚJÍTÁSI"}]
[{"$f":"Főösszesítő!$A$8","v":"MUNKÁIHOZ"}]
[]
["ÉPÍTÉSZETI MUNKÁK"]
{"$rows_empty":10}
[null,"21. Irtás, föld- és sziklamunka",{"$nulls":8},{"$f":"K86","v":0},null,{"$f":"M86","v":0}]
[]
[null,"31. Helyszíni beton és vasbeton munkák",{"$nulls":8},{"$f":"K99","v":0},null,{"$f":"M99","v":0}]
[]
[null,"32. Előregyártott épületszerkezeti elem elhelyezése és szerelése",{"$nulls":8},{"$f":"K117","v":0},null,{"$f":"M117","v":0}]
[]
[null,"33. Falazás és egyéb kőművesmunkák",{"$nulls":8},{"$f":"K183","v":0},null,{"$f":"M183","v":0}]
[]
[null,"36. Vakolás és rabicolás",{"$nulls":8},{"$f":"K220","v":0},null,{"$f":"M220","v":0}]
[]
[null,"39. Szárazépítés",{"$nulls":8},{"$f":"K249","v":0},null,{"$f":"M249","v":0}]
[]
[null,"42. Hideg- és melegburkolatok készítése, aljzat előkészítés",{"$nulls":8},{"$f":"K344","v":0},null,{"$f":"M344","v":0}]
[]
[null,"44. Fa- és műanyag szerkezet elhelyezése",{"$nulls":8},{"$f":"K431","v":0},null,{"$f":"M431","v":0}]
[]
[null,"47. Felületképzés",{"$nulls":8},{"$f":"K509","v":0},null,{"$f":"M509","v":0}]
[]
[null,"90. Takarítási munkák",{"$nulls":8},{"$f":"K527","v":0},null,{"$f":"M527","v":0}]
[]
[]
[{"$nulls":10},{"$f":"SUM(K21:K41)","v":0},null,{"$f":"SUM(M21:M41)","v":0}]
[]
[{"$nulls":8},"Nettó vállalási ár:",null,{"$f":"K42+M42","v":0}]
[]
["KÖLTSÉGVETÉS"]
[{"$f":"Főösszesítő!$A$2","v":"A"}]
[{"$f":"Főösszesítő!$A$3","v":"SZTE - MEZŐGAZDASÁGI KAR"}]
[{"$f":"Főösszesítő!$A$4","v":"6000 HÓDMEZŐVÁSÁRHELY, ANDRÁSSY ÚT 15. SZÁM ALATTI"}]
[{"$f":"Főösszesítő!$A$5","v":"III., IV. SZÁMÚ ÉPÜLETSZÁRNY VIZESBLOKKOK"}]
[]
[{"$f":"Főösszesítő!$A$7","v":"FELÚJÍTÁSI"}]
[{"$f":"Főösszesítő!$A$8","v":"MUNKÁIHOZ"}]
[]
[{"$f":"A10","v":"ÉPÍTÉSZETI MUNKÁK"}]
{"$rows_empty":10}
[null,{"$f":"$B$21","v":"21. Irtás, föld- és sziklamunka"}]
[]
[null,"21-011-11.6"]
[1,"Építési törmelék konténeres elszállítása, lerakása, lerakóhelyi díjjal,"]
[null,"8,0 m³-es konténerbe"]
[]
[null,null,6,"db","a:",0,"d:",0,null,"A:",{"$f":"ROUND(C72*F72,)","v":0},"D:",{"$f":"ROUND(C72*H72,)","v":0}]
[]
[null,"21-011-12"]
[{"$f":"MAX($A$69:A74)+1","v":2},"Munkahelyi depóniából építési törmelék konténerbe rakása, kézi erővel,"]
[null,"önálló munka esetén elszámolva, konténer szállítás nélkül"]
[]
[null,null,48,"laza m3","a:",0,"d:",0,null,"A:",{"$f":"ROUND(C78*F78,)","v":0},"D:",{"$f":"ROUND(C78*H78,)","v":0}]
[]
[null,"K21-011-13"]
[{"$f":"MAX($A$69:A80)+1","v":3},"Építési törmelék le- és kihordása, kézi erővel"]
[]
[null,null,48,"laza m3","a:",0,"d:",0,null,"A:",{"$f":"ROUND(C83*F83,)","v":0},"D:",{"$f":"ROUND(C83*H83,)","v":0}]
[]
[]
[null,{"$f":"Építész_21","v":"21. Irtás, föld- és sziklamunka"},{"$nulls":8},{"$f":"SUM(K72:K85)","v":0},null,{"$f":"SUM(M72:M85)","v":0}]
[]
[{"$nulls":8},"Összesen:",null,{"$f":"K86+M86","v":0}]
[]
[null,{"$f":"$B$23","v":"31. Helyszíni beton és vasbeton munkák"}]
[]
[null,"31-000-4.1.1"]
[1,"Üvegbeton fal bontása, kézi bontás, az üvegtéglák egyenkénti kiemelésével,"]
[null,"25 db/m²-ig"]
[]
[null,null,9.4,"m2","a:",0,"d:",0,null,"A:",{"$f":"ROUND(C96*F96,)","v":0},"D:",{"$f":"ROUND(C96*H96,)","v":0}]
[]
[]
[null,{"$f":"Építész_31","v":"31. Helyszíni beton és vasbeton munkák"},{"$nulls":8},{"$f":"SUM(K96:K98)","v":0},null,{"$f":"SUM(M96:M98)","v":0}]
[]
[{"$nulls":8},"Összesen:",null,{"$f":"K99+M99","v":0}]
[]
[null,{"$f":"$B$25","v":"32. Előregyártott épületszerkezeti elem elhelyezése és szerelése"}]
[]
[null,"32-002-2.1.1-0120002"]
[1,"Előregyártott nyomottöv nélküli nyílásáthidaló elhelyezése, tartószerkezetre,"]
[null,"csomóponti kötés nélkül,falazat szélességű áthidaló elemekből vagy több"]
[null,"elem egymás mellé sorolásával, a teherhordó falváll előkészítésével, az"]
[null,"áthidaló elemek ideiglenes alátámasztásával, kiegészítő hőszigetelés"]
[null,"elhelyezése nélkül, 0,07 t/db tömegig, égetett agyag-kerámia köpenyes"]
[null,"nyílásáthidaló gerenda,"]
[null,"POROTHERM A-12 kerámia burkolatú nyílásáthidaló, 1,25 m"]
[]
[null,null,1,"db","a:",0,"d:",0,null,"A:",{"$f":"ROUND(C114*F114,)","v":0},"D:",{"$f":"ROUND(C114*H114,)","v":0}]
[]
[]
[null,{"$f":"Építész_32","v":"32. Előregyártott épületszerkezeti elem elhelyezése és szerelése"},{"$nulls":8},{"$f":"SUM(K114:K116)","v":0},null,{"$f":"SUM(M114:M116)","v":0}]
[]
[{"$nulls":8},"Összesen:",null,{"$f":"K117+M117","v":0}]
[]
[null,{"$f":"$B$27","v":"33. Falazás és egyéb kőművesmunkák"}]
[]
[null,"33-000-21.1.1.1.3.1"]
[1,"Válaszfal bontása, égetett agyag-kerámia termékekből, erősítő pillérrel vagy"]
[null,"erősítő pillér nélkül falazva, kisméretű, mészhomok, magasított vagy"]
[null,"nagyméretű téglából, 12 - 14 cm vastagságig (féltégla), falazó, cementes"]
[null,"mészhabarcsból falazva"]
[]
[null,null,24.400000000000002,"m2","a:",0,"d:",0,null,"A:",{"$f":"ROUND(C129*F129,)","v":0},"D:",{"$f":"ROUND(C129*H129,)","v":0}]
[]
[null,"33-000-21.1.1.2.1.1"]
[{"$f":"MAX($A$124:A131)+1","v":2},"Válaszfal bontása, égetett agyag-kerámia termékekből, erősítő pillérrel vagy"]
[null,"erősítő pillér nélkül falazva, üreges kerámia válaszfaltéglából, 6 cm"]
[null,"vastagságig, falazó, cementes mészhabarcsból falazva"]
[]
[null,null,6.5,"m2","a:",0,"d:",0,null,"A:",{"$f":"ROUND(C136*F136,)","v":0},"D:",{"$f":"ROUND(C136*H136,)","v":0}]
[]
[null,"33-000-21.1.1.2.2.1"]
[{"$f":"MAX($A$124:A138)+1","v":3},"Válaszfal bontása, égetett agyag-kerámia termékekből, erősítő pillérrel vagy"]
[null,"erősítő pillér nélkül falazva, üreges kerámia válaszfaltéglából, 10 cm"]
[null,"vastagságig, falazó, cementes mészhabarcsból falazva"]
[]
[null,null,57.4,"m2","a:",0,"d:",0,null,"A:",{"$f":"ROUND(C143*F143,)","v":0},"D:",{"$f":"ROUND(C143*H143,)","v":0}]
[]
[null,"M33-000-72"]
[{"$f":"MAX($A$124:A145)+1","v":4},"Rabic csatorna bontása, 4 cm vastagságig"]
[]
[null,null,9,"m","a:",0,"d:",0,null,"A:",{"$f":"ROUND(C148*F148,)","v":0},"D:",{"$f":"ROUND(C148*H148,)","v":0}]
[]
[null,"K33-000-99"]
[{"$f":"MAX($A$124:A150)+1","v":5},"Zuhanypadka bontása"]
[]
[null,null,3.6,"m","a:",0,"d:",0,null,"A:",{"$f":"ROUND(C153*F153,)","v":0},"D:",{"$f":"ROUND(C153*H153,)","v":0}]
[]
[null,"M33-091-2.1.1-2110002"]
[{"$f":"MAX($A$124:A155)+1","v":6},"Teherhordó és kitöltő falazat, égetett agyag-kerámia termékekből, tokok"]
[null,"körülfalazása bontott nyílásban, 80 mm vastag falban, 1 tégla vastag falban,"]
[null,"Kisméretű tömör tégla 250x120x65 mm I.o."]
[null,"M 1 (Hf10-mc) falazó, cementes mészhabarcs"]
[]
[null,null,2,"m","a:",0,"d:",0,null,"A:",{"$f":"ROUND(C161*F161,)","v":0},"D:",{"$f":"ROUND(C161*H161,)","v":0}]
[]
[null,"33-091-11.2.1-2130011"]
[{"$f":"MAX($A$124:A163)+1","v":7},"Válaszfal, égetett agyag-kerámia termékekből, erősítő pillérrel vagy erősítő"]
[null,"pillér nélkül falazva, nyílásbefalazás, nyílásszűkítés vagy kisebb falpótlások,"]
[null,"6 cm falvastagsággal, válaszfallapból falazó, meszes cementhabarcsból falazva,"]
[null,"Válaszfaltégla 400x200x60 mm I.o."]
[null,"M 1 (Hf10-mc) falazó, cementes mészhabarcs"]
[]
[null,null,3.2,"m2","a:",0,"d:",0,null,"A:",{"$f":"ROUND(C170*F170,)","v":0},"D:",{"$f":"ROUND(C170*H170,)","v":0}]
[]
[null,"33-091-11.4.1-2110002"]
[{"$f":"MAX($A$124:A172)+1","v":8},"Válaszfal, égetett agyag-kerámia termékekből, erősítő pillérrel vagy erősítő"]
[null,"pillér nélkül falazva, nyílásbefalazás, nyílásszűkítés vagy kisebb falpótlások,"]
[null,"12 cm vastagsággal, tömör kisméretű téglából, falazó, cementes"]
[null,"mészhabarcsból falazva,"]
[null,"Kisméretű tömör tégla 250x120x65 mm I.o."]
[null,"M 1 (Hf10-mc) falazó, cementes mészhabarcs"]
[]
[null,null,1.7000000000000002,"m2","a:",0,"d:",0,null,"A:",{"$f":"ROUND(C180*F180,)","v":0},"D:",{"$f":"ROUND(C180*H180,)","v":0}]
[]
[]
[null,{"$f":"Építész_33","v":"33. Falazás és egyéb kőművesmunkák"},{"$nulls":8},{"$f":"SUM(K129:K182)","v":0},null,{"$f":"SUM(M129:M182)","v":0}]
[]
[{"$nulls":8},"Összesen:",null,{"$f":"K183+M183","v":0}]
[]
[null,{"$f":"$B$29","v":"36. Vakolás és rabicolás"}]
[]
[null,"36-003-1.1.1.2.1-0415920"]
[1,"Oldalfalvakolat készítése, kézi felhordással, zsákos kiszerelésű"]
[null,"szárazhabarcsból, sima, könnyített mész-cement vakolat, 1 cm"]
[null,"vastagságban,"]
[null,"Baumit UniPutz (Uni vakolat), Cikkszám: 152221"]
[]
[null,null,11,"m2","a:",0,"d:",0,null,"A:",{"$f":"ROUND(C195*F195,)","v":0},"D:",{"$f":"ROUND(C195*H195,)","v":0}]
[]
[null,"36-090-1.1.1-0550040"]
[{"$f":"MAX($A$190:A197)+1","v":2},"Vakolatjavítás oldalfalon, tégla-, beton-, kőfelületen vagy építőlemezen,"]
[null,"a meglazult, sérült vakolat előzetes leverésével, hiánypótlás 5% alatt,"]
[null,"Hvb8-mc, beltéri, vakoló cementes mészhabarcs mészpéppel"]
[]
[null,null,10,"m2","a:",0,"d:",0,null,"A:",{"$f":"ROUND(C202*F202,)","v":0},"D:",{"$f":"ROUND(C202*H202,)","v":0}]
[]
[null,"36-090-1.1.3-0550040"]
[{"$f":"MAX($A$190:A204)+1","v":3},"Vakolatjavítás oldalfalon, tégla-, beton-, kőfelületen vagy építőlemezen,"]
[null,"a meglazult, sérült vakolat előzetes leverésével, hiánypótlás 25% felett,"]
[null,"Hvb8-mc, beltéri, vakoló cementes mészhabarcs mészpéppel"]
[]
[null,null,165.29999999999998,"m2","a:",0,"d:",0,null,"A:",{"$f":"ROUND(C209*F209,)","v":0},"D:",{"$f":"ROUND(C209*H209,)","v":0}]
[]
[null,"36-090-2.1.2"]
[{"$f":"MAX($A$190:A211)+1","v":4},"Vakolatok pótlása, keskenyvakolatok pótlása oldalfalon,"]
[null,"11-20 cm szélesség között"]
[null,"(gépészeti vezetékek nyomvonalának javítása)"]
[null,"ELŐIRÁNYZAT!"]
[]
[null,null,100,"m","a:",0,"d:",0,null,"A:",{"$f":"ROUND(C217*F217,)","v":0},"D:",{"$f":"ROUND(C217*H217,)","v":0}]
[]
[]
[null,{"$f":"Építész_36","v":"36. Vakolás és rabicolás"},{"$nulls":8},{"$f":"SUM(K195:K219)","v":0},null,{"$f":"SUM(M195:M219)","v":0}]
[]
[{"$nulls":8},"Összesen:",null,{"$f":"K220+M220","v":0}]
[]
[null,{"$f":"$B$31","v":"39. Szárazépítés"}]
[]
[null,"M39-001-23.1.1-0120021"]
[1,"CW fém vázszerkezetre szerelt válaszfal 2 x 2 rtg. impregnált, 12,5 mm vtg."]
[null,"gipszkarton borítással, hőszigeteléssel, csavarfejek és illesztések glettelve,"]
[null,"egyszeres, CW 50 tartóvázzal,"]
[null,"RIGIPS impregnált építőlemez RBI 12,5 mm, ásványi szálas hőszigetelés"]
[]
[null,null,185.29999999999998,"m2","a:",0,"d:",0,null,"A:",{"$f":"ROUND(C232*F232,)","v":0},"D:",{"$f":"ROUND(C232*H232,)","v":0}]
[]
[null,"M39-005-2.2.1-0120021"]
[{"$f":"MAX($A$227:A234)+1","v":2},"Szabadon álló előtétfal készítése, üveggyapot szigetelőanyag kitöltéssel,"]
[null,"2 rtg. gipszkarton borítással, 50 mm széles profilvázra szerelve,"]
[null,"RIGIPS 2 rtg. RBI 12,5 impregnált gipszkarton + 50 mm szigetelőanyag"]
[null,"(11 kg/m³)"]
[]
[null,null,5.6999999999999993,"m2","a:",0,"d:",0,null,"A:",{"$f":"ROUND(C240*F240,)","v":0},"D:",{"$f":"ROUND(C240*H240,)","v":0}]
[]
[null,"K39-005-26-0120021"]
[{"$f":"MAX($A$227:A242)+1","v":3},"Gipszkarton dobozolás készítése, 2 rtg. gipszkarton borítással,"]
[null,"RIGIPS impregnált építőlemez RBI 12,5 mm"]
[]
[null,null,51.1,"m","a:",0,"d:",0,null,"A:",{"$f":"ROUND(C246*F246,)","v":0},"D:",{"$f":"ROUND(C246*H246,)","v":0}]
[]
[]
[null,{"$f":"Építész_39","v":"39. Szárazépítés"},{"$nulls":8},{"$f":"SUM(K232:K248)","v":0},null,{"$f":"SUM(M232:M248)","v":0}]
[]
[{"$nulls":8},"Összesen:",null,{"$f":"K249+M249","v":0}]
[]
[null,{"$f":"$B$33","v":"42. Hideg- és melegburkolatok készítése, aljzat előkészítés"}]
[]
[null,"42-000-2.1"]
[1,"Lapburkolatok bontása, padlóburkolat bármely méretű kőagyag, mozaik"]
[null,"vagy tört mozaik (NOVA) lapból"]
[]
[null,null,167.4,"m2","a:",0,"d:",0,null,"A:",{"$f":"ROUND(C259*F259,)","v":0},"D:",{"$f":"ROUND(C259*H259,)","v":0}]
[]
[null,"42-000-2.2"]
[{"$f":"MAX($A$256:A261)+1","v":2},"Lapburkolatok bontása, fal-, pillér- és oszlopburkolat, bármely méretű"]
[null,"mozaik, kőagyag és csempe"]
[]
[null,null,165.29999999999998,"m2","a:",0,"d:",0,null,"A:",{"$f":"ROUND(C265*F265,)","v":0},"D:",{"$f":"ROUND(C265*H265,)","v":0}]
[]
[null,"42-000-2.3"]
[{"$f":"MAX($A$256:A267)+1","v":3},"Lapburkolatok bontása, lábazatburkolat 0,50 m magasságig, egyenes"]
[null,"egysoros vagy lépcsős kivitelben, 10x10 - 20x20 cm-es lapméretig"]
[]
[null,null,118.89999999999999,"m","a:",0,"d:",0,null,"A:",{"$f":"ROUND(C271*F271,)","v":0},"D:",{"$f":"ROUND(C271*H271,)","v":0}]
[]
[null,"42-011-1.1.1.1-0313027"]
[{"$f":"MAX($A$256:A273)+1","v":4},"Fal-, pillér és oszlopburkolat hordozószerkezetének felületelőkészítése"]
[null,"beltérben, tégla, beton és vakolt alapfelületen, felületelőkészítő alapozó"]
[null,"és tapadóhíd felhordása egy rétegben"]
[null,"MAPEI Primer G Nagyon alacsony illékony szervesanyag kibocsátású,"]
[null,"műgyanta bázisú diszperziós alapozó"]
[]
[null,null,630.70000000000005,"m2","a:",0,"d:",0,null,"A:",{"$f":"ROUND(C280*F280,)","v":0},"D:",{"$f":"ROUND(C280*H280,)","v":0}]
[]
[null,"42-011-1.1.1.2-0313001"]
[{"$f":"MAX($A$256:A282)+1","v":5},"Fal-, pillér és oszlopburkolat hordozószerkezetének felületelőkészítése"]
[null,"beltérben, tégla, beton és vakolt alapfelületen, kenhető víz- és páraszigetelés"]
[null,"felhordása egy rétegben, hajlaterősítő szalag elhelyezésével"]
[null,"MAPEI Mapelastic Kétkomponensű, rugalmas, víznyomásálló, közvetlenül"]
[null,"burkolható, kül- és beltéri, kenhető vízszigetelő cementkötésű habarcs"]
[]
[null,null,48,"m2","a:",0,"d:",0,null,"A:",{"$f":"ROUND(C289*F289,)","v":0},"D:",{"$f":"ROUND(C289*H289,)","v":0}]
[]
[null,"42-011-2.1.1.1-0313027"]
[{"$f":"MAX($A$256:A291)+1","v":6},"Padlóburkolat hordozószerkezetének felületelőkészítése beltérben,"]
[null,"beton alapfelületen felületelőkészítő alapozó és tapadóhíd felhordása egy rétegben"]
[null,"MAPEI Primer G Nagyon alacsony illékony szervesanyag kibocsátású,"]
[null,"műgyanta bázisú diszperziós alapozó"]
[]
[null,null,310,"m2","a:",0,"d:",0,null,"A:",{"$f":"ROUND(C297*F297,)","v":0},"D:",{"$f":"ROUND(C297*H297,)","v":0}]
[]
[null,"42-011-2.1.1.2-0313001"]
[{"$f":"MAX($A$256:A299)+1","v":7},"Padlóburkolat hordozószerkezetének felületelőkészítése beltérben,"]
[null,"beton alapfelületen kenhető víz- és páraszigetelés felhordása egy rétegben,"]
[null,"hajlaterősítő szalag elhelyezésével"]
[null,"MAPEI Mapelastic Kétkomponensű, rugalmas, víznyomásálló, közvetlenül"]
[null,"burkolható, kül- és beltéri, kenhető vízszigetelő cementkötésű habarcs"]
[]
[null,null,155,"m2","a:",0,"d:",0,null,"A:",{"$f":"ROUND(C306*F306,)","v":0},"D:",{"$f":"ROUND(C306*H306,)","v":0}]
[]
[null,"42-012-1.1.1.1.1.3-0313111"]
[{"$f":"MAX($A$256:A308)+1","v":8},"Fal-, pillér-, oszlopburkolat készítése beltérben, tégla, beton, vakolt alapfelületen,"]
[null,"mázas kerámiával, kötésben vagy hálósan, 3-5 mm vtg. ragasztóba rakva,"]
[null,"1-10 mm fugaszélességgel, 25x25 -  40x40 cm közötti lapmérettel"]
[null,"MAPEI Keraflex cementkötésű ragasztóhabarcs, szürke, Csz: 119125"]
[null,"MAPEI Ultracolor Plus fugázóhabarcs, fehér, Csz: 6010002"]
[]
[null,null,582.70000000000005,"m2","a:",0,"d:",0,null,"A:",{"$f":"ROUND(C315*F315,)","v":0},"D:",{"$f":"ROUND(C315*H315,)","v":0}]
[]
[null,"42-022-1.1.1.2.1.1-0313116"]
[{"$f":"MAX($A$256:A317)+1","v":9},"Padlóburkolat készítése, beltérben, tégla, beton, vakolt alapfelületen,"]
[null,"gres, kőporcelán lappal, kötésben vagy hálósan, 3-5 mm vtg. ragasztóba rakva,"]
[null,"1-10 mm fugaszélességgel, 20x20 - 40x40 cm közötti lapmérettel"]
[null,"MAPEI Keraflex cementkötésű ragasztóhabarcs, szürke, Csz: 119125"]
[null,"MAPEI Ultracolor Plus fugázóhabarcs, fehér, Csz: 6010002"]
[]
[null,null,155,"m2","a:",0,"d:",0,null,"A:",{"$f":"ROUND(C324*F324,)","v":0},"D:",{"$f":"ROUND(C324*H324,)","v":0}]
[]
[null,"42-071-4-0150749"]
[{"$f":"MAX($A$256:A326)+1","v":10},"Kiegészítő profil elhelyezése falburkolatok külső sarkainak védelmére szimmetrikus,"]
[null,"asszimmetrikus kialakítással, műanyagból, szinterezett alumíniumból, eloxált"]
[null,"alumíniumból, fényes, matt, szálcsiszolt alumíniumból,vagy fényes és szálcsiszolt"]
[null,"rozsdamentes acélból, 3-15 mm vastagsági mérettel"]
[null,"Schlüter-RONDEC-PRO 2,5 m, íves PVC élvédő profil H=8 mm"]
[]
[null,null,144.6,"m","a:",0,"d:",0,null,"A:",{"$f":"ROUND(C333*F333,)","v":0},"D:",{"$f":"ROUND(C333*H333,)","v":0}]
[]
[null,"42-073-1.1-0313175"]
[{"$f":"MAX($A$256:A335)+1","v":11},"Dilatációs és csatlakozó fuga kitöltése, szilikon alapú elasztikus tömítő"]
[null,"anyaggal, 5 mm szélesség- és mélységben"]
[null,"MAPEI Mapesil AC Oldószermentes, ecetsavas, penészedésálló szilikon"]
[null,"hézagkitöltőanyag"]
[]
[null,null,1213.3,"m","a:",0,"d:",0,null,"A:",{"$f":"ROUND(C341*F341,)","v":0},"D:",{"$f":"ROUND(C341*H341,)","v":0}]
[]
[]
[null,{"$f":"Építész_42","v":"42. Hideg- és melegburkolatok készítése, aljzat előkészítés"},{"$nulls":8},{"$f":"SUM(K259:K343)","v":0},null,{"$f":"SUM(M259:M343)","v":0}]
[]
[{"$nulls":8},"Összesen:",null,{"$f":"K344+M344","v":0}]
[]
[null,{"$f":"$B$35","v":"44. Fa- és műanyag szerkezet elhelyezése"}]
[]
[null,"44-000-1.1"]
[1,"Fa vagy műanyag nyílászáró szerkezetek bontása, ajtó, ablak vagy kapu,"]
[null,"2,00 m²-ig"]
[]
[null,null,22.700000000000003,"m2","a:",0,"d:",0,null,"A:",{"$f":"ROUND(C354*F354,)","v":0},"D:",{"$f":"ROUND(C354*H354,)","v":0}]
[]
[null,"44-000-1.2"]
[{"$f":"MAX($A$351:A356)+1","v":2},"Fa vagy műanyag nyílászáró szerkezetek bontása, ajtó, ablak vagy kapu,"]
[null,"2,01-4,00 m² között"]
[]
[null,null,3.6,"m2","a:",0,"d:",0,null,"A:",{"$f":"ROUND(C360*F360,)","v":0},"D:",{"$f":"ROUND(C360*H360,)","v":0}]
[]
[null,"44-000-2"]
[{"$f":"MAX($A$351:A362)+1","v":3},"Fa- vagy műanyagvázas üvegfal bontása"]
[]
[null,null,35.800000000000004,"m2","a:",0,"d:",0,null,"A:",{"$f":"ROUND(C365*F365,)","v":0},"D:",{"$f":"ROUND(C365*H365,)","v":0}]
[]
[null,"M44-001-1.1.1-4400101"]
[{"$f":"MAX($A$351:A367)+1","v":4},"Fa beltéri nyílászárók elhelyezése, előre kihagyott falnyílásba, utólagos"]
[null,"elhelyezéssel, tömítéssel, (szerelvényezve, finom beállítással),"]
[null,"MDF vagy keményhéjszerkezetes ajtó,"]
[null,"75 x 200 cm névlees méretű"]
[]
[null,null,8,"db","a:",0,"d:",0,null,"A:",{"$f":"ROUND(C373*F373,)","v":0},"D:",{"$f":"ROUND(C373*H373,)","v":0}]
[]
[null,"M44-001-1.1.1-4400102"]
[{"$f":"MAX($A$351:A375)+1","v":5},"Fa beltéri nyílászárók elhelyezése, előre kihagyott falnyílásba, utólagos"]
[null,"elhelyezéssel, tömítéssel, (szerelvényezve, finom beállítással),"]
[null,"MDF vagy keményhéjszerkezetes ajtó,"]
[null,"75 x 210 cm névlees méretű"]
[]
[null,null,3,"db","a:",0,"d:",0,null,"A:",{"$f":"ROUND(C381*F381,)","v":0},"D:",{"$f":"ROUND(C381*H381,)","v":0}]
[]
[null,"M44-001-1.1.1-4400103"]
[{"$f":"MAX($A$351:A383)+1","v":6},"Fa beltéri nyílászárók elhelyezése, előre kihagyott falnyílásba, utólagos"]
[null,"elhelyezéssel, tömítéssel, (szerelvényezve, finom beállítással),"]
[null,"MDF vagy keményhéjszerkezetes ajtó,"]
[null,"90 x 210 cm névlees méretű"]
[]
[null,null,3,"db","a:",0,"d:",0,null,"A:",{"$f":"ROUND(C389*F389,)","v":0},"D:",{"$f":"ROUND(C389*H389,)","v":0}]
[]
[null,"M44-030-2.1-4400201"]
[{"$f":"MAX($A$351:A391)+1","v":7},"Szerelt jellegű WC-kabinrendszer készítése kompletten, lábakkal, zárral,"]
[null,"foglaltságjelzővel, egyes kabin, 90 cm széles előlap ajtóval,"]
[null,"K-FAL Elegant 18 mm vastag kétoldalt laminált bútorlapból, szerelvényekkel,"]
[null,"foglaltságjelző zárral, porszórt vagy eloxált aluprofilokkal, egyes kabin, "]
[null,"90 cm széles előlap ajtóval,"]
[]
[null,null,1,"db","a:",0,"d:",0,null,"A:",{"$f":"ROUND(C398*F398,)","v":0},"D:",{"$f":"ROUND(C398*H398,)","v":0}]
[]
[null,"M44-030-2.2-4400202"]
[{"$f":"MAX($A$351:A400)+1","v":8},"Szerelt jellegű WC-kabinrendszer készítése kompletten, lábakkal, zárral,"]
[null,"foglaltságjelzővel, kettes kabin, 174 cm széles előlap 2 ajtóval, 120 cm"]
[null,"széles válaszfallal,"]
[null,"K-FAL Elegant 18 mm vastag kétoldalt laminált bútorlapból, szerelvényekkel,"]
[null,"foglaltságjelző zárral, porszórt vagy eloxált aluprofilokkal, kettes kabin,"]
[null,"174 cm széles előlap 2 ajtóval, 120 cm széles válaszfallal"]
[]
[null,null,1,"db","a:",0,"d:",0,null,"A:",{"$f":"ROUND(C408*F408,)","v":0},"D:",{"$f":"ROUND(C408*H408,)","v":0}]
[]
[null,"M44-030-2.2-4400203"]
[{"$f":"MAX($A$351:A410)+1","v":9},"Szerelt jellegű WC-kabinrendszer készítése kompletten, lábakkal, zárral,"]
[null,"foglaltságjelzővel, kettes kabin, 182 cm széles előlap 2 ajtóval, 134 cm"]
[null,"széles válaszfallal,"]
[null,"K-FAL Elegant 18 mm vastag kétoldalt laminált bútorlapból, szerelvényekkel,"]
[null,"foglaltságjelző zárral, porszórt vagy eloxált aluprofilokkal, kettes kabin,"]
[null,"182 cm széles előlap 2 ajtóval, 134 cm széles válaszfallal"]
[]
[null,null,1,"db","a:",0,"d:",0,null,"A:",{"$f":"ROUND(C418*F418,)","v":0},"D:",{"$f":"ROUND(C418*H418,)","v":0}]
[]
[null,"M44-030-2.2-4400204"]
[{"$f":"MAX($A$351:A420)+1","v":10},"Szerelt jellegű WC-kabinrendszer készítése kompletten, lábakkal, zárral,"]
[null,"foglaltságjelzővel, kettes kabin, 188 cm széles előlap 2 ajtóval, 124 cm"]
[null,"széles válaszfallal,"]
[null,"K-FAL Elegant 18 mm vastag kétoldalt laminált bútorlapból, szerelvényekkel,"]
[null,"foglaltságjelző zárral, porszórt vagy eloxált aluprofilokkal, kettes kabin,"]
[null,"188 cm széles előlap 2 ajtóval, 124 cm széles válaszfallal"]
[]
[null,null,1,"db","a:",0,"d:",0,null,"A:",{"$f":"ROUND(C428*F428,)","v":0},"D:",{"$f":"ROUND(C428*H428,)","v":0}]
[]
[]
[null,{"$f":"Építész_44","v":"44. Fa- és műanyag szerkezet elhelyezése"},{"$nulls":8},{"$f":"SUM(K354:K430)","v":0},null,{"$f":"SUM(M354:M430)","v":0}]
[]
[{"$nulls":8},"Összesen:",null,{"$f":"K431+M431","v":0}]
[]
[null,{"$f":"$B$37","v":"47. Felületképzés"}]
[]
[null,"47-000-1.3.1.2"]
[1,"Belső festéseknél felület előkészítése, részmunkák;"]
[null,"vizes diszperziós falfesték lekaparása, bármilyen padozatú helységben,"]
[null,"tagolt felületen"]
[]
[null,null,300,"m2","a:",0,"d:",0,null,"A:",{"$f":"ROUND(C442*F442,)","v":0},"D:",{"$f":"ROUND(C442*H442,)","v":0}]
[]
[null,"M47-000-1.99.1.2.1.2-0415512"]
[{"$f":"MAX($A$438:A444)+1","v":2},"Belső festéseknél felület előkészítése, részmunkák;"]
[null,"felület glettelése zsákos kiszerelésű anyagból (alapozóval, sarokvédelemmel),"]
[null,"bármilyen padozatú helyiségben, vakolt felületen, 1,5 mm vastagságban"]
[null,"tagolt felületen,"]
[null,"Baumit FinoBello, gipszes glett, 0-10 mm-es vastagságban, Cikkszám: 951720"]
[null,"(meglévő felületeken, a teljes felület 25%-ában)"]
[null,"ELŐIRÁNYZAT!"]
[]
[null,null,172,"m2","a:",0,"d:",0,null,"A:",{"$f":"ROUND(C453*F453,)","v":0},"D:",{"$f":"ROUND(C453*H453,)","v":0}]
[]
[null,"47-000-1.99.1.4.1.2-0415512"]
[{"$f":"MAX($A$438:A455)+1","v":3},"Belső festéseknél felület előkészítése, részmunkák;"]
[null,"felület glettelése zsákos kiszerelésű anyagból (alapozóval, sarokvédelemmel),"]
[null,"bármilyen padozatú helyiségben, gipszkarton felületen, 1,5 mm vastagságban,"]
[null,"tagolt felületen,"]
[null,"Baumit FinoBello, gipszes glett, 0-10 mm-es vastagságban, Cikkszám: 951720"]
[]
[null,null,185,"m2","a:",0,"d:",0,null,"A:",{"$f":"ROUND(C462*F462,)","v":0},"D:",{"$f":"ROUND(C462*H462,)","v":0}]
[]
[null,"47-000-7.3.2-0150112"]
[{"$f":"MAX($A$438:A464)+1","v":4},"Fafelületek mázolásának előkészítő és részmunkái;"]
[null,"simító tapaszolás fafelületen, egyszeri és minden további, tagolt felületen,"]
[null,"Trinát Mestertapasz, EAN: 595061609376"]
[null,"(Meglévő megmaradó belső ajtók teljes felülete,"]
[null,"valamint a homlokzati ablakok belső oldala)"]
[]
[null,null,191,"m2","a:",0,"d:",0,null,"A:",{"$f":"ROUND(C471*F471,)","v":0},"D:",{"$f":"ROUND(C471*H471,)","v":0}]
[]
[null,"47-011-15.1.1.2-0160011"]
[{"$f":"MAX($A$438:A473)+1","v":5},"Diszperziós festés műanyag bázisú vizes-diszperziós fehér vagy gyárilag"]
[null,"színezett festékkel, új vagy régi lekapart, előkészített alapfelületen, vakolaton,"]
[null,"két rétegben, tagolt sima felületen"]
[null,"POLI-FARBE Inntaler diszperziós beltéri, fehér falfesték"]
[]
[null,null,871,"m2","a:",0,"d:",0,null,"A:",{"$f":"ROUND(C479*F479,)","v":0},"D:",{"$f":"ROUND(C479*H479,)","v":0}]
[]
[null,"47-031-1.1.1.2-0130701"]
[{"$f":"MAX($A$438:A481)+1","v":6},"Belső fafelületek alapmázolása, műgyantabázisú (alkid) oldószertartalmú"]
[null,"alapozóval, tagolt felületen,"]
[null,"Trinát alapozófesték, fehér 100, EAN: 5995061117031"]
[null,"(Meglévő megmaradó belső ajtók teljes felülete,"]
[null,"valamint a homlokzati ablakok belső oldala)"]
[]
[null,null,191,"m2","a:",0,"d:",0,null,"A:",{"$f":"ROUND(C488*F488,)","v":0},"D:",{"$f":"ROUND(C488*H488,)","v":0}]
[]
[null,"47-031-1.3.1.2-0130701"]
[{"$f":"MAX($A$438:A490)+1","v":7},"Belső fafelületek fedőmázolása, műgyantabázisú (alkid) oldószertartalmú"]
[null,"alapozóval, tagolt felületen,"]
[null,"Trinát alapozófesték, fehér 100, EAN: 5995061117031"]
[null,"(Meglévő megmaradó belső ajtók teljes felülete,"]
[null,"valamint a homlokzati ablakok belső oldala)"]
[]
[null,null,191,"m2","a:",0,"d:",0,null,"A:",{"$f":"ROUND(C497*F497,)","v":0},"D:",{"$f":"ROUND(C497*H497,)","v":0}]
[]
[null,"47-031-1.5.1.2-0130361"]
[{"$f":"MAX($A$438:A499)+1","v":8},"Belső fafelületek zománclakkozása, műgyantabázisú (alkid) oldószertartalmú"]
[null,"zománccal, tagolt felületen,"]
[null,"Trinát magasfényű zománcfesték, fehér 100, EAN: 5995061119042"]
[null,"(Meglévő megmaradó belső ajtók teljes felülete,"]
[null,"valamint a homlokzati ablakok belső oldala)"]
[]
[null,null,191,"m2","a:",0,"d:",0,null,"A:",{"$f":"ROUND(C506*F506,)","v":0},"D:",{"$f":"ROUND(C506*H506,)","v":0}]
[]
[]
[null,{"$f":"Építész_47","v":"47. Felületképzés"},{"$nulls":8},{"$f":"SUM(K442:K508)","v":0},null,{"$f":"SUM(M442:M508)","v":0}]
[]
[{"$nulls":8},"Összesen:",null,{"$f":"K509+M509","v":0}]
[]
[null,{"$f":"$B$39","v":"90. Takarítási munkák"}]
[]
[null,"90-008-1-0110202"]
[1,"Festés előtt burkolatok takarásának készítése,"]
[null,"Takarás készítése fóliával, vagy hullámpapírral"]
[]
[null,null,155,"m2","a:",0,"d:",0,null,"A:",{"$f":"ROUND(C519*F519,)","v":0},"D:",{"$f":"ROUND(C519*H519,)","v":0}]
[]
[null,"90-008-2"]
[{"$f":"MAX($A$516:A521)+1","v":2},"Festés után burkolatok takarásának felszedése"]
[]
[null,null,155,"m2","a:",0,"d:",0,null,"A:",{"$f":"ROUND(C524*F524,)","v":0},"D:",{"$f":"ROUND(C524*H524,)","v":0}]
[]
[]
[null,{"$f":"Építész_90","v":"90. Takarítási munkák"},{"$nulls":8},{"$f":"SUM(K519:K526)","v":0},null,{"$f":"SUM(M519:M526)","v":0}]
[]
[{"$nulls":8},"Összesen:",null,{"$f":"K527+M527","v":0}]

{"sheet":"Gépész összesítő","index":2,"n_rows":10,"n_cols":3,"rows_kept":10,"cut":false,"hidden":false,"merged":[]}
["Munkanem megnevezése","Anyag összege","Díj összege"]
["Költségtérítések",{"$f":"Gépész!H17","v":0},{"$f":"Gépész!I17","v":0}]
["Irtás, föld- és sziklamunka",{"$f":"Gépész!H38","v":0},{"$f":"Gépész!I38","v":0}]
["Közműcsővezetékek és -szerelvények szerelése",{"$f":"Gépész!H63","v":0},{"$f":"Gépész!I63","v":0}]
["Technológiai, vegyi, olajipari és szénhidrogén csőszerelési munkák",{"$f":"Gépész!H78","v":0},{"$f":"Gépész!I78","v":0}]
["Általános épületgépészeti szigetelés",{"$f":"Gépész!H95","v":0},{"$f":"Gépész!I95","v":0}]
["Épületgépészeti csővezeték szerelése",{"$f":"Gépész!H126","v":0},{"$f":"Gépész!I126","v":0}]
["Épületgépészeti szerelvények és berendezések szerelése",{"$f":"Gépész!H235","v":0},{"$f":"Gépész!I235","v":0}]
["Szellőztetőberendezések",{"$f":"Gépész!H248","v":0},{"$f":"Gépész!I248","v":0}]
["Összesen:",{"$f":"ROUND(SUM(B2:B9),0)","v":0},{"$f":"ROUND(SUM(C2:C9), 0)","v":0}]

{"sheet":"Gépész","index":3,"n_rows":248,"n_cols":9,"rows_kept":248,"cut":false,"hidden":false,"merged":[]}
["Ssz.","Tételszám","Tétel szövege","Menny.","Egység","Anyag egységár","Díj egységre","Anyag összesen","Díj összesen"]
[1,"19-010-1.11.1.4","Általános teendők megvalósulás szakaszában, ellenőrző mérések, tervezői műszaki vezetés a kivitelezés helyszínén",25,"óra",0,0,{"$f":"ROUND(D2*F2, 0)","v":0},{"$f":"ROUND(D2*G2, 0)","v":0}]
[]
[2,"19-010-1.21.1","Általános teendők befejezés szakaszában, átadás - átvétel, jegyzőkönyv elkészítése",1,"db",0,0,{"$f":"ROUND(D4*F4, 0)","v":0},{"$f":"ROUND(D4*G4, 0)","v":0}]
[]
[3,"19-010-1.21.2","Általános teendők befejezés szakaszában, megvalósulási tervdokumentáció elkészítése",3,"db",0,0,{"$f":"ROUND(D6*F6, 0)","v":0},{"$f":"ROUND(D6*G6, 0)","v":0}]
[]
[4,"19-053-1.1","Közmű bekötések vízvezeték hálózat bekötése a közmű vezetékbe (Vízmű számla)",1,"db",0,0,{"$f":"ROUND(D8*F8, 0)","v":0},{"$f":"ROUND(D8*G8, 0)","v":0}]
[]
[5,"19-053-1.4","Közmű bekötések csatorna vezetékhálózat bekötése a közmű vezetékbe (Csatornamű számla)",4,"db",0,0,{"$f":"ROUND(D10*F10, 0)","v":0},{"$f":"ROUND(D10*G10, 0)","v":0}]
[]
[6,"19-081-11.1.2","Ellenőrző próbák készítése belső vízvezeték hálózatra, akkreditált vízminőség vizsgálat",4,"db",0,0,{"$f":"ROUND(D12*F12, 0)","v":0},{"$f":"ROUND(D12*G12, 0)","v":0}]
[]
[7,"19-090-1","Építmények átadás előtti utolsó takarítása (pipere)",321,"db",0,0,{"$f":"ROUND(D14*F14, 0)","v":0},{"$f":"ROUND(D14*G14, 0)","v":0}]
[]
[]
[null,null,"Munkanem összesen:",{"$nulls":4},{"$f":"ROUND(SUM(H2:H16),0)","v":0},{"$f":"ROUND(SUM(I2:I16),0)","v":0}]
[]
["Ssz.","Tételszám","Tétel szövege","Menny.","Egység","Anyag egységár","Díj egységre","Anyag összesen","Díj összesen"]
[1,"21-003-2.1.1","Közmű feltárása kézi erővel, talajosztály: I-II.",95,"m3",0,0,{"$f":"ROUND(D20*F20, 0)","v":0},{"$f":"ROUND(D20*G20, 0)","v":0}]
[]
[2,"21-003-5.1.1.1","Munkaárok földkiemelése közművesített területen, kézi erővel, bármely konzisztenciájú talajban, dúcolás nélkül, 2,0 m² szelvényig, I-II. talajosztály",95,"m3",0,0,{"$f":"ROUND(D22*F22, 0)","v":0},{"$f":"ROUND(D22*G22, 0)","v":0}]
[]
[3,"21-003-11.1.2","Földvisszatöltés munkagödörbe vagy munkaárokba, tömörítés nélkül, réteges elterítéssel, I-IV. osztályú talajban, kézi erővel, az anyag súlypontja karoláson belül, a vezetéket (műtárgyat) környező 50 cm-en túli szelvényben",66.5,"m3",0,0,{"$f":"ROUND(D24*F24, 0)","v":0},{"$f":"ROUND(D24*G24, 0)","v":0}]
[]
[4,"21-004-4.1.1-0133663","Talajjavító réteg készítése vonalas létesítményeknél, 3,00 m szélességig vagy építményen belül, homokból Osztályozott homok, OH 0/4, KŐKA, Szombathely",28.5,"m3",0,0,{"$f":"ROUND(D26*F26, 0)","v":0},{"$f":"ROUND(D26*G26, 0)","v":0}]
[]
[5,"21-008-2.2.3","Tömörítés bármely tömörítési osztályban gépi erővel, kis felületen, tömörségi fok: 95%",66.5,"m3",0,0,{"$f":"ROUND(D28*F28, 0)","v":0},{"$f":"ROUND(D28*G28, 0)","v":0}]
[]
[6,"21-008-2.3.1","Tömörítés bármely tömörítési osztályban gépi erővel, vezeték felett és mellett, tömörségi fok: 85%",28.5,"m3",0,0,{"$f":"ROUND(D30*F30, 0)","v":0},{"$f":"ROUND(D30*G30, 0)","v":0}]
[]
[7,"21-011-1.1.1","Fejtett föld felrakása szállítóeszközre, kézi erővel, talajosztály I-IV.",28.5,"m3",0,0,{"$f":"ROUND(D32*F32, 0)","v":0},{"$f":"ROUND(D32*G32, 0)","v":0}]
[]
[8,"21-011-11.3","Építési törmelék konténeres elszállítása, lerakása, lerakóhelyi díjjal, 5,0 m³-es konténerbe",7,"db",0,0,{"$f":"ROUND(D34*F34, 0)","v":0},{"$f":"ROUND(D34*G34, 0)","v":0}]
[]
[9,"21-011-12","Munkahelyi depóniából építési törmelék konténerbe rakása,  kézi erővel, önálló munka esetén elszámolva, konténer szállítás nélkül",35,"m3",0,0,{"$f":"ROUND(D36*F36, 0)","v":0},{"$f":"ROUND(D36*G36, 0)","v":0}]
[]
[null,null,"Munkanem összesen:",{"$nulls":4},{"$f":"ROUND(SUM(H20:H37),0)","v":0},{"$f":"ROUND(SUM(I20:I37),0)","v":0}]
[]
["Ssz.","Tételszám","Tétel szövege","Menny.","Egység","Anyag egységár","Díj egységre","Anyag összesen","Díj összesen"]
[1,"54-000-1.1.2","Csővezetékek bontása, idomokkal és szerelvényekkel együtt, hegesztett acél- és lemezcső, 40-149 mm külső Ø között",15,"m",0,0,{"$f":"ROUND(D41*F41, 0)","v":0},{"$f":"ROUND(D41*G41, 0)","v":0}]
[]
[2,"54-000-1.4.1","Csővezetékek bontása, idomokkal és szerelvényekkel együtt, azbesztcement nyomócső, 200 mm Ø-ig",80,"m",0,0,{"$f":"ROUND(D43*F43, 0)","v":0},{"$f":"ROUND(D43*G43, 0)","v":0}]
[]
[3,"54-005-5.1-0110083","PP, PE, KPE nyomócső szerelése, földárokban, hegesztett kötésekkel, idomokkal, csőátmérő: 16-50 mm között PIPELIFE PE100 ivóvíz nyomócső 32x2,0 mm 10bar (C=1,25), 100VSDR17032EN200K",25,"m",0,0,{"$f":"ROUND(D45*F45, 0)","v":0},{"$f":"ROUND(D45*G45, 0)","v":0}]
[]
[4,"54-005-5.2-0110086","PP, PE, KPE nyomócső szerelése, földárokban, hegesztett kötésekkel, idomokkal, csőátmérő: 63-90 mm között PIPELIFE PE100 ivóvíz nyomócső 63x3,8 mm 10bar (C=1,25), 100VSDR17063EN100K",10,"m",0,0,{"$f":"ROUND(D47*F47, 0)","v":0},{"$f":"ROUND(D47*G47, 0)","v":0}]
[]
[5,"54-005-5.2-0110171","PP, PE, KPE nyomócső szerelése, földárokban, hegesztett kötésekkel, idomokkal, csőátmérő: 63-90 mm között PIPELIFE PE100 ivóvíz nyomócső 90x5,4 mm 10bar (C=1,25), 100VSDR17090EN100K",30,"m",0,0,{"$f":"ROUND(D49*F49, 0)","v":0},{"$f":"ROUND(D49*G49, 0)","v":0}]
[]
[6,"54-005-5.4-0110173","PP, PE, KPE nyomócső szerelése, földárokban, hegesztett kötésekkel, idomokkal, csőátmérő: 125 mm PIPELIFE PE100 ivóvíz nyomócső 125x7,4 mm 10bar (C=1,25), 100VSDR17125EN12K",25,"m",0,0,{"$f":"ROUND(D51*F51, 0)","v":0},{"$f":"ROUND(D51*G51, 0)","v":0}]
[]
[7,"54-005-5.5-0133590","PP, PE, KPE nyomócső szerelése, földárokban, hegesztett kötésekkel, idomokkal, csőátmérő: 140-160 mm között WAVIN PE ivóvíz nyomócső PE 100 SDR 11 PN 16 140 mm x 12,7 mm kék csík 12 m/szál, P14011VS",5,"m",0,0,{"$f":"ROUND(D53*F53, 0)","v":0},{"$f":"ROUND(D53*G53, 0)","v":0}]
[]
[8,"54-011-5-0249101","Nyomvonaljelző szalag fektetése közművezetékek fölé PIPELIFE \"víz\" jelölőszalag, VIZ-JELSZALAG",95,"m",0,0,{"$f":"ROUND(D55*F55, 0)","v":0},{"$f":"ROUND(D55*G55, 0)","v":0}]
[]
[9,"54-011-5-0249104","Nyomvonaljelző szalag fektetése közművezetékek fölé PIPELIFE \"közműépítés\" jelölőszalag, KOZMU-JELSZALAG",15,"m",0,0,{"$f":"ROUND(D57*F57, 0)","v":0},{"$f":"ROUND(D57*G57, 0)","v":0}]
[]
[10,"54-016-6.1","Fűtési és vízvezeték szakaszos és hálózati nyomáspróbája vízzel, 200 mm külső Ø-ig",593,"m",0,0,{"$f":"ROUND(D59*F59, 0)","v":0},{"$f":"ROUND(D59*G59, 0)","v":0}]
[]
[11,"54-016-7.1","Csővezetékek fertőtlenítése, DN 200 méretig",593,"m",0,0,{"$f":"ROUND(D61*F61, 0)","v":0},{"$f":"ROUND(D61*G61, 0)","v":0}]
[]
[null,null,"Munkanem összesen:",{"$nulls":4},{"$f":"ROUND(SUM(H41:H62),0)","v":0},{"$f":"ROUND(SUM(I41:I62),0)","v":0}]
[]
["Ssz.","Tételszám","Tétel szövege","Menny.","Egység","Anyag egységár","Díj egységre","Anyag összesen","Díj összesen"]
[1,"56-055-3.2.1-0475052","Épületgépészeti hang és/vagy hőszigetelt csőtartó rendszer szerelése, bilincskészlet 8\" vagy 249 mm-ig, 1\"-ig HILTI Csőbilincs MP-PI 16-20 3/8\" M8/M10, Csz.: 2126901",80,"db",0,0,{"$f":"ROUND(D66*F66, 0)","v":0},{"$f":"ROUND(D66*G66, 0)","v":0}]
[]
[2,"56-055-3.2.1-0475053","Épületgépészeti hang és/vagy hőszigetelt csőtartó rendszer szerelése, bilincskészlet 8\" vagy 249 mm-ig, 1\"-ig HILTI Csőbilincs MP-PI 20-24 1/2\" M8/M10, Csz.: 2126902",30,"db",0,0,{"$f":"ROUND(D68*F68, 0)","v":0},{"$f":"ROUND(D68*G68, 0)","v":0}]
[]
[3,"56-055-3.2.1-0475054","Épületgépészeti hang és/vagy hőszigetelt csőtartó rendszer szerelése, bilincskészlet 8\" vagy 249 mm-ig, 1\"-ig HILTI Csőbilincs MP-PI 25-28 3/4\" M8/M10, Csz.: 2126903",48,"db",0,0,{"$f":"ROUND(D70*F70, 0)","v":0},{"$f":"ROUND(D70*G70, 0)","v":0}]
[]
[4,"56-055-3.2.6-0475065","Épületgépészeti hang és/vagy hőszigetelt csőtartó rendszer szerelése, bilincskészlet 8\" vagy 249 mm-ig, 4\" HILTI Csőbilincs MP-PI 107-115 4\" M8/M10, Csz.: 2073475",40,"db",0,0,{"$f":"ROUND(D72*F72, 0)","v":0},{"$f":"ROUND(D72*G72, 0)","v":0}]
[]
[5,"56-055-3.2.6-0475066","Épületgépészeti hang és/vagy hőszigetelt csőtartó rendszer szerelése, bilincskészlet 8\" vagy 249 mm-ig, 4\" HILTI Csőbilincs MP-PI 120-128  M8/M10, Csz.: 2073476",40,"db",0,0,{"$f":"ROUND(D74*F74, 0)","v":0},{"$f":"ROUND(D74*G74, 0)","v":0}]
[]
[6,"K-tétel","Szerelési segédanyagok bilincsek rögzítéséhez (tipli, tőszár) ",238,"db",0,0,{"$f":"ROUND(D76*F76, 0)","v":0},{"$f":"ROUND(D76*G76, 0)","v":0}]
[]
[null,null,"Munkanem összesen:",{"$nulls":4},{"$f":"ROUND(SUM(H66:H77),0)","v":0},{"$f":"ROUND(SUM(I66:I77),0)","v":0}]
[]
["Ssz.","Tételszám","Tétel szövege","Menny.","Egység","Anyag egységár","Díj egységre","Anyag összesen","Díj összesen"]
[1,"80-001-1.3.2.1.1-0125623","Fűtési, HMV, HHV vezetékek szigetelése (ívek, idomok, szerelvények szigetelése és burkolás nélkül), polietilén csőhéjjal csupasz kivitelben, ragasztással illetve hőlégfúvással hegesztve, öntapadó ragasztó szalag lezárással, vagy klipsszel rögzítve, NÁ 114 mm csőátmérőig Csőhéj, falvastagság: 13 mm, külső csőátmérő 18 mm",80,"m",0,0,{"$f":"ROUND(D81*F81, 0)","v":0},{"$f":"ROUND(D81*G81, 0)","v":0}]
[]
[2,"80-001-1.3.2.1.1-0125624","Fűtési, HMV, HHV vezetékek szigetelése (ívek, idomok, szerelvények szigetelése és burkolás nélkül), polietilén csőhéjjal csupasz kivitelben, ragasztással illetve hőlégfúvással hegesztve, öntapadó ragasztó szalag lezárással, vagy klipsszel rögzítve, NÁ 114 mm csőátmérőig Csőhéj, falvastagság: 13 mm, külső csőátmérő 22 mm",21,"m",0,0,{"$f":"ROUND(D83*F83, 0)","v":0},{"$f":"ROUND(D83*G83, 0)","v":0}]
[]
[3,"80-001-1.3.2.1.1-0125625","Fűtési, HMV, HHV vezetékek szigetelése (ívek, idomok, szerelvények szigetelése és burkolás nélkül), polietilén csőhéjjal csupasz kivitelben, ragasztással illetve hőlégfúvással hegesztve, öntapadó ragasztó szalag lezárással, vagy klipsszel rögzítve, NÁ 114 mm csőátmérőig Csőhéj, falvastagság: 13 mm, külső csőátmérő 28 mm",33,"m",0,0,{"$f":"ROUND(D85*F85, 0)","v":0},{"$f":"ROUND(D85*G85, 0)","v":0}]
[]
[4,"80-001-1.4.1.1.1-0125336","Fűtési, HMV, HHV vezetékek szigetelése (ívek, idomok, szerelvények szigetelése és burkolás nélkül), szintetikus gumi alapú kaucsuk csőhéjjal csupasz kivitelben, ragasztással, öntapadó ragasztó szalag lezárással, NÁ 108 mm csőátmérőig Csőhéj, falvastagság: 9 mm, külső csőátmérő 18 mm",40,"m",0,0,{"$f":"ROUND(D87*F87, 0)","v":0},{"$f":"ROUND(D87*G87, 0)","v":0}]
[]
[5,"80-001-1.4.1.1.1-0125337","Fűtési, HMV, HHV vezetékek szigetelése (ívek, idomok, szerelvények szigetelése és burkolás nélkül), szintetikus gumi alapú kaucsuk csőhéjjal csupasz kivitelben, ragasztással, öntapadó ragasztó szalag lezárással, NÁ 108 mm csőátmérőig Csőhéj, falvastagság: 9 mm, külső csőátmérő 22 mm",21,"m",0,0,{"$f":"ROUND(D89*F89, 0)","v":0},{"$f":"ROUND(D89*G89, 0)","v":0}]
[]
[6,"80-001-1.4.1.1.1-0125338","Fűtési, HMV, HHV vezetékek szigetelése (ívek, idomok, szerelvények szigetelése és burkolás nélkül), szintetikus gumi alapú kaucsuk csőhéjjal csupasz kivitelben, ragasztással, öntapadó ragasztó szalag lezárással, NÁ 108 mm csőátmérőig Csőhéj, falvastagság: 9 mm, külső csőátmérő 28 mm",33,"m",0,0,{"$f":"ROUND(D91*F91, 0)","v":0},{"$f":"ROUND(D91*G91, 0)","v":0}]
[]
[7,"80-005-1.1.4.1.1.1.1-0114112","Légtechnikai és szellőző berendezések vezetékeinek hő- és hangszigetelése (ívek, idomok, szerelvények szigetelése és burkolás nélkül), kör keresztmetszetű, szintetikus gumi alapú kaucsuk tekerccsel nem öntapadós kialakítással, csupasz kivitelben, ragasztással, öntapadó ragasztó szalag lezárással, NÁ 108 mm csőátmérő felett Lap tekercsben, falvastagság:  9 mm",12,"m2",0,0,{"$f":"ROUND(D93*F93, 0)","v":0},{"$f":"ROUND(D93*G93, 0)","v":0}]
[]
[null,null,"Munkanem összesen:",{"$nulls":4},{"$f":"ROUND(SUM(H81:H94),0)","v":0},{"$f":"ROUND(SUM(I81:I94),0)","v":0}]
[]
["Ssz.","Tételszám","Tétel szövege","Menny.","Egység","Anyag egységár","Díj egységre","Anyag összesen","Díj összesen"]
[1,"81-000-1.1.1","Csővezetékek bontása, horganyzott vagy fekete acélcsövek tartószerkezetről, vagy padlócsatornából lángvágással, deponálással, DN 50 méretig",417,"m",0,0,{"$f":"ROUND(D98*F98, 0)","v":0},{"$f":"ROUND(D98*G98, 0)","v":0}]
[]
[2,"81-000-1.3.2.1","Csővezetékek bontása, aljzatból, födémből vagy épületen belüli földárokból, öntöttvas tokos lefolyócső, DN  25 - 100 között",222,"m",0,0,{"$f":"ROUND(D100*F100, 0)","v":0},{"$f":"ROUND(D100*G100, 0)","v":0}]
[]
[3,"81-000-1.6","Csővezetékek bontása, vízvezeték elzárás és nyitás, javítási munkák előtt és után",16,"db",0,0,{"$f":"ROUND(D102*F102, 0)","v":0},{"$f":"ROUND(D102*G102, 0)","v":0}]
[]
[4,"81-001-1.3.5.1.1.1.2-0333602","Ivóvíz vezeték, Ötrétegű cső szerelése, PE-RT/Al/PE-RT anyagból, préshüvelyes kötésekkel, cső elhelyezése csőidomok nélkül, szakaszos nyomáspróbával, falhoronyba vagy padlószerkezetbe (horonyvésés külön tételben), DN 15 Uponor Uni Pipe PLUS varratnélküli szigetelt ötrétegű cső S4, 4mm, 20x2,25 mm, 10 bar, 100m-es tekercsben, Cikkszám: 1063553",250,"m",0,0,{"$f":"ROUND(D104*F104, 0)","v":0},{"$f":"ROUND(D104*G104, 0)","v":0}]
[]
[5,"81-001-1.3.5.1.1.1.3-0333603","Ivóvíz vezeték, Ötrétegű cső szerelése, PE-RT/Al/PE-RT anyagból, préshüvelyes kötésekkel, cső elhelyezése csőidomok nélkül, szakaszos nyomáspróbával, falhoronyba vagy padlószerkezetbe (horonyvésés külön tételben), DN 20 Uponor Uni Pipe PLUS varratnélküli szigetelt ötrétegű cső S4, 4mm, 25x2,5 mm, 10 bar, 50m-es tekercsben, Cikkszám: 1063553",20,"m",0,0,{"$f":"ROUND(D106*F106, 0)","v":0},{"$f":"ROUND(D106*G106, 0)","v":0}]
[]
[6,"81-002-1.1.1.1.9.1-0135133","PP polipropilén lefolyóvezeték szerelése szakaszos tömörségi próbával, szabadon vagy padlócsatornába 90 °C tartós, 95 °C rövid ideig tartó hőmérséklet tűrésű, hangcsillapítás nélkül, gumitömítésű tokos kötéssel, csőtartókkal, kiegészítő elemek, légbeszívó elhelyezése HL900N, Légbeszívó szelep DN110 hőszigetelő burkolattal, levehető rovarfogó ráccsal, gumimembránnal, DN50 és DN75 szűkítővel, Teljesítmény: 37 l/s",3,"db",0,0,{"$f":"ROUND(D108*F108, 0)","v":0},{"$f":"ROUND(D108*G108, 0)","v":0}]
[]
[7,"81-002-2.1.1.1.3-0111003","PE polietilén lefolyócső szerelése csőtartókkal, szakaszos tömörségi próbával, szabadon vagy padlócsatornába 80 °C tartós, 95°C rövid ideig tartó hőmérséklet tűrésű, tompahegesztéses kötésekkel, csőátmérő DN 100 méretig, csőidomok nélkül, DN 50 GEBERIT PE lefolyócső, 5 méteres szálban, 361.000, átmérő  50 x 3,0 mm",50,"m",0,0,{"$f":"ROUND(D110*F110, 0)","v":0},{"$f":"ROUND(D110*G110, 0)","v":0}]
[]
[8,"81-002-2.1.1.2.1-0111008","PE polietilén lefolyócső szerelése csőtartókkal, szakaszos tömörségi próbával, szabadon vagy padlócsatornába 80 °C tartós, 95°C rövid ideig tartó hőmérséklet tűrésű, tompahegesztéses kötésekkel, csőátmérő DN 100 méret felett, csőidomok nélkül, DN 110 GEBERIT PE lefolyócső, 5 méteres szálban, 367.000, átmérő 110 x 4,3 mm",60,"m",0,0,{"$f":"ROUND(D112*F112, 0)","v":0},{"$f":"ROUND(D112*G112, 0)","v":0}]
[]
[9,"81-002-2.1.1.2.2-0111009","PE polietilén lefolyócső szerelése csőtartókkal, szakaszos tömörségi próbával, szabadon vagy padlócsatornába 80 °C tartós, 95°C rövid ideig tartó hőmérséklet tűrésű, tompahegesztéses kötésekkel, csőátmérő DN 100 méret felett, csőidomok nélkül, DN 125 GEBERIT PE lefolyócső, 5 méteres szálban, 368.000, átmérő 125 x 4,9 mm",60,"m",0,0,{"$f":"ROUND(D114*F114, 0)","v":0},{"$f":"ROUND(D114*G114, 0)","v":0}]
[]
[10,"81-002-3.2.1.2.1-0130981","PVC lefolyóvezeték szerelése, tokos, gumigyűrűs kötésekkel, cső elhelyezése csőidomokkal, szakaszos tömörségi próbával, horonyba vagy padlócsatornába, DN 32 PIPELIFE PVC-U tokos lefolyócső 32x1,8x1000 mm, KAEM032/1M",90,"m",0,0,{"$f":"ROUND(D116*F116, 0)","v":0},{"$f":"ROUND(D116*G116, 0)","v":0}]
[]
[11,"81-002-3.2.1.2.6-0130986","PVC lefolyóvezeték szerelése, tokos, gumigyűrűs kötésekkel, cső elhelyezése csőidomokkal, szakaszos tömörségi próbával, horonyba vagy padlócsatornába, DN 100 PIPELIFE PVC-U tokos lefolyócső 110x2,2x1000 mm, KAEM110/1M",60,"m",0,0,{"$f":"ROUND(D118*F118, 0)","v":0},{"$f":"ROUND(D118*G118, 0)","v":0}]
[]
[12,"81-007-1.1.1.1.1.1.2-0337562","Víz- és fűtési vezeték, Rozsdamentes acélcső szerelése, préselt csőkötésekkel, cső elhelyezése csőidomok nélkül, szakaszos nyomáspróbával, szabadon, horonyba vagy padlócsatornába, DN 12 - DN 50, DN 15 GEBERIT Mapress rozsdamentes cső 1.4401 kis köteg, 6 m-es szálban, ivóvíz, fűtés, gáz és technológiai alkalmazásra, 18x1,0, Cikkszám: 39203",120,"m",0,0,{"$f":"ROUND(D120*F120, 0)","v":0},{"$f":"ROUND(D120*G120, 0)","v":0}]
[]
[13,"81-007-1.1.1.1.1.1.3-0337563","Víz- és fűtési vezeték, Rozsdamentes acélcső szerelése, préselt csőkötésekkel, cső elhelyezése csőidomok nélkül, szakaszos nyomáspróbával, szabadon, horonyba vagy padlócsatornába, DN 12 - DN 50, DN 20 GEBERIT Mapress rozsdamentes cső 1.4401 kis köteg, 6 m-es szálban, ivóvíz, fűtés, gáz és technológiai alkalmazásra, 22x1,2, Cikkszám: 39204",42,"m",0,0,{"$f":"ROUND(D122*F122, 0)","v":0},{"$f":"ROUND(D122*G122, 0)","v":0}]
[]
[14,"81-007-1.1.1.1.1.1.4-0337564","Víz- és fűtési vezeték, Rozsdamentes acélcső szerelése, préselt csőkötésekkel, cső elhelyezése csőidomok nélkül, szakaszos nyomáspróbával, szabadon, horonyba vagy padlócsatornába, DN 12 - DN 50, DN 25 GEBERIT Mapress rozsdamentes cső 1.4401 kis köteg, 6 m-es szálban, ivóvíz, fűtés, gáz és technológiai alkalmazásra, 28x1,2, Cikkszám: 39205",66,"m",0,0,{"$f":"ROUND(D124*F124, 0)","v":0},{"$f":"ROUND(D124*G124, 0)","v":0}]
[]
[null,null,"Munkanem összesen:",{"$nulls":4},{"$f":"ROUND(SUM(H98:H125),0)","v":0},{"$f":"ROUND(SUM(I98:I125),0)","v":0}]
[]
["Ssz.","Tételszám","Tétel szövege","Menny.","Egység","Anyag egységár","Díj egységre","Anyag összesen","Díj összesen"]
[1,"82-000-1.2.1","Szerelvények leszerelése, menetes szerelvények, DN 50 méretig",114,"db",0,0,{"$f":"ROUND(D129*F129, 0)","v":0},{"$f":"ROUND(D129*G129, 0)","v":0}]
[]
[2,"82-000-3.1","Vízellátás berendezési tárgyak leszerelése, szelepek, bekötőcsövek, könyökök, zsírfogók stb.",100,"db",0,0,{"$f":"ROUND(D131*F131, 0)","v":0},{"$f":"ROUND(D131*G131, 0)","v":0}]
[]
[3,"82-000-3.2","Vízellátás berendezési tárgyak leszerelése, falikutak, mosdók",28,"db",0,0,{"$f":"ROUND(D133*F133, 0)","v":0},{"$f":"ROUND(D133*G133, 0)","v":0}]
[]
[4,"82-000-3.3","Vízellátás berendezési tárgyak leszerelése, mosogatók",3,"db",0,0,{"$f":"ROUND(D135*F135, 0)","v":0},{"$f":"ROUND(D135*G135, 0)","v":0}]
[]
[5,"82-000-3.4","Vízellátás berendezési tárgyak leszerelése, WC csésze tartozékokkal",26,"db",0,0,{"$f":"ROUND(D137*F137, 0)","v":0},{"$f":"ROUND(D137*G137, 0)","v":0}]
[]
[6,"82-000-3.5","Vízellátás berendezési tárgyak leszerelése, vizelde tartozékokkal",17,"db",0,0,{"$f":"ROUND(D139*F139, 0)","v":0},{"$f":"ROUND(D139*G139, 0)","v":0}]
[]
[7,"82-000-3.6","Vízellátás berendezési tárgyak leszerelése, öblítőtartály tartozékokkal",26,"db",0,0,{"$f":"ROUND(D141*F141, 0)","v":0},{"$f":"ROUND(D141*G141, 0)","v":0}]
[]
[8,"82-000-3.9.2","Vízellátás berendezési tárgyak leszerelése, zuhanytálcák beépített",1,"db",0,0,{"$f":"ROUND(D143*F143, 0)","v":0},{"$f":"ROUND(D143*G143, 0)","v":0}]
[]
[9,"82-000-3.11.1","Vízellátás berendezési tárgyak leszerelése, elektromos hőtároló, 50 literig",1,"db",0,0,{"$f":"ROUND(D145*F145, 0)","v":0},{"$f":"ROUND(D145*G145, 0)","v":0}]
[]
[10,"82-000-3.11.2","Vízellátás berendezési tárgyak leszerelése, elektromos hőtároló, 51-120 liter között",1,"db",0,0,{"$f":"ROUND(D147*F147, 0)","v":0},{"$f":"ROUND(D147*G147, 0)","v":0}]
[]
[11,"82-001-2.19.2-0131032","Kétoldalon karimás szerelvény elhelyezése ellenkarimákkal, DN 80 PN 16 - PN 40, gömbcsap MVV-ISG WKC1A gömbcsap szénacélból, karimás, vízre, PN 16 - PN 25 DN 80",1,"db",0,0,{"$f":"ROUND(D149*F149, 0)","v":0},{"$f":"ROUND(D149*G149, 0)","v":0}]
[]
[12,"82-001-7.2.2-0116729","Kétoldalon menetes vagy roppantógyűrűs szerelvény elhelyezése, külső vagy belső menettel, illetve hollandival csatlakoztatva DN 15 gömbcsap, víz- és gázfőcsap EFFEBI ASTER teljesátömlésű golyóscsap sárgarézből, nikkelezett kivitel, öntött alumínium karral, PN 40, 100 C fok, bb, 1/2\" típ, Kód: 824R404",2,"db",0,0,{"$f":"ROUND(D151*F151, 0)","v":0},{"$f":"ROUND(D151*G151, 0)","v":0}]
[]
[13,"82-001-7.3.2-0116730","Kétoldalon menetes vagy roppantógyűrűs szerelvény elhelyezése, külső vagy belső menettel, illetve hollandival csatlakoztatva DN 20 gömbcsap, víz- és gázfőcsap EFFEBI ASTER teljesátömlésű golyóscsap sárgarézből, nikkelezett kivitel, öntött alumínium karral, PN 40, 100 C fok, bb, 3/4\" típ, Kód: 824R405",7,"db",0,0,{"$f":"ROUND(D153*F153, 0)","v":0},{"$f":"ROUND(D153*G153, 0)","v":0}]
[]
[14,"82-001-7.4.2-0121048","Kétoldalon menetes vagy roppantógyűrűs szerelvény elhelyezése, külső vagy belső menettel, illetve hollandival csatlakoztatva DN 25 gömbcsap, víz- és gázfőcsap HERZ gömbcsap elzárókarral, nikkelezett, PTFE tömítéssel, -30℃-150℃, víz 0℃-110℃, 1\" bb. menettel, Csz: 1210003",11,"db",0,0,{"$f":"ROUND(D155*F155, 0)","v":0},{"$f":"ROUND(D155*G155, 0)","v":0}]
[]
[15,"82-001-7.7.2-0116734","Kétoldalon menetes vagy roppantógyűrűs szerelvény elhelyezése, külső vagy belső menettel, illetve hollandival csatlakoztatva DN 50, DN 65 gömbcsap, víz- és gázfőcsap EFFEBI ASTER teljesátömlésű golyóscsap sárgarézből, nikkelezett kivitel, öntött alumínium karral, PN 40, 100 C fok, bb,   2\" típ, Kód: 804R409",2,"db",0,0,{"$f":"ROUND(D157*F157, 0)","v":0},{"$f":"ROUND(D157*G157, 0)","v":0}]
[]
[16,"82-001-31.3.1-0170031","Oldható csőkötés karimapárból, menetes kötéssel, DN 80-125 méret között DN 80 PN 6 - PN 10 MVV-ISG nyakas menetes karima MSZ 2907 DIN 2566 PN 10-16 3\"",2,"db",0,0,{"$f":"ROUND(D159*F159, 0)","v":0},{"$f":"ROUND(D159*G159, 0)","v":0}]
[]
[17,"82-004-1.1-0363644","Elektromos melegvíztermelő (átfolyós vagy tárolós) berendezés elhelyezése, tartozékokkal, szerelvényekkel, vízoldali bekötéssel,elektromos bekötés nélkül, 20 literig ARISTON - AN LUX ECO 15U/5 EU, 15 literes villanybojler ECO funkcióval, LCD kijelzővel, alsós, \"A\" energia osztály, Cikkszám: 3100350",1,"db",0,0,{"$f":"ROUND(D161*F161, 0)","v":0},{"$f":"ROUND(D161*G161, 0)","v":0}]
[]
[18,"82-009-1.1.1-0215021","Falikút, kiöntő vagy mosóvályú elhelyezése és bekötése, falikút, szifon (bűzelzáró) és csaptelep nélkül, acéllemezből-, rozsdamentes lemezből vagy öntöttvasból Acéllemez falikút, kívül-belül fehér tűzzománcozott, rövid hátlapú",4,"db",0,0,{"$f":"ROUND(D163*F163, 0)","v":0},{"$f":"ROUND(D163*G163, 0)","v":0}]
[]
[19,"82-009-2.1.1.3-0214055","Mosogató elhelyezése és bekötése, hideg-meleg vízre, háztartási mosogatók, csaptelep és bűzelzáró nélkül, bútorba beépített, kétmedencés Rozsdamentes lemez háztartási mosogató, kétmedencés 900x600 mm",1,"db",0,0,{"$f":"ROUND(D165*F165, 0)","v":0},{"$f":"ROUND(D165*G165, 0)","v":0}]
[]
[20,"82-009-5.1-0112781","Mosdó vagy mosómedence berendezés elhelyezése és bekötése, kifolyószelep, bűzelzáró és sarokszelep nélkül, falra szerelhető porcelán kivitelben (komplett) ALFÖLDI/BÁZIS porcelán mosdó 60 cm, 3 csaplyukkal, fúrt, 4191 60 01, fehér",17,"db",0,0,{"$f":"ROUND(D167*F167, 0)","v":0},{"$f":"ROUND(D167*G167, 0)","v":0}]
[]
[21,"82-009-5.1-0112781","Mosdó vagy mosómedence berendezés elhelyezése és bekötése, kifolyószelep, bűzelzáró és sarokszelep nélkül, falra szerelhető porcelán kivitelben (komplett) ALFÖLDI/BÁZIS porcelán mosdó 60 cm, 3 csaplyukkal, fúrt, 4191 60 01, fehér Csak szerelés!",4,"db",0,0,{"$f":"ROUND(D169*F169, 0)","v":0},{"$f":"ROUND(D169*G169, 0)","v":0}]
[]
[22,"82-009-5.1-0112793","Mosdó vagy mosómedence berendezés elhelyezése és bekötése, kifolyószelep, bűzelzáró és sarokszelep nélkül, falra szerelhető porcelán kivitelben (komplett) ALFÖLDI/BÁZIS porcelán mosdó 55 cm, 3 csaplyukkal, fúrt, 4191 55 01, fehér Csak szerelés!",6,"db",0,0,{"$f":"ROUND(D171*F171, 0)","v":0},{"$f":"ROUND(D171*G171, 0)","v":0}]
[]
[23,"82-009-11.1.1.2-0110231","WC csésze elhelyezése és bekötése, sarokszelep, WC ülőke, nyomógomb nélkül, porcelánból, alsókifolyású, mélyöblítésű kivitelben ALFÖLDI/BÁZIS porcelán mélyöblítésű WC csésze, 6 l alsó kifolyású, fehér, Kód: 4033 00 01 Csak szerelés!",3,"db",0,0,{"$f":"ROUND(D173*F173, 0)","v":0},{"$f":"ROUND(D173*G173, 0)","v":0}]
[]
[24,"82-009-11.1.1.2-0110231","WC csésze elhelyezése és bekötése, sarokszelep, WC ülőke, nyomógomb nélkül, porcelánból, alsókifolyású, mélyöblítésű kivitelben ALFÖLDI/BÁZIS porcelán mélyöblítésű WC csésze, 6 l alsó kifolyású, fehér, Kód: 4033 00 01",7,"db",0,0,{"$f":"ROUND(D175*F175, 0)","v":0},{"$f":"ROUND(D175*G175, 0)","v":0}]
[]
[25,"82-009-11.1.2.2","WC csésze elhelyezése és bekötése, sarokszelep, WC ülőke, nyomógomb nélkül, porcelánból, hátsókifolyású, mélyöblítésű kivitelben Alföldi WC cikkszám: 4031 00 01 Csak szerelés!",18,"db",0,0,{"$f":"ROUND(D177*F177, 0)","v":0},{"$f":"ROUND(D177*G177, 0)","v":0}]
[]
[26,"82-009-11.1.4.2","WC csésze elhelyezése és bekötése, sarokszelep, WC ülőke, nyomógomb nélkül, porcelánból, monoblokkos, alsókifolyású mélyöblítésű kivitelben Alföldi Saval 2.0 WC, cikkszám: 7090 09 01 Csak szerelés!",3,"db",0,0,{"$f":"ROUND(D179*F179, 0)","v":0},{"$f":"ROUND(D179*G179, 0)","v":0}]
[]
[27,"82-009-12.1-0117096","WC-csésze kiegészítő szerelvényeinek elhelyezése, WC-ülőke Alföldi WC-ülőke, 8780 95 01, fehér  Csak szerelés!",31,"db",0,0,{"$f":"ROUND(D181*F181, 0)","v":0},{"$f":"ROUND(D181*G181, 0)","v":0}]
[]
[28,"82-009-12.2.1-0135121","WC-csésze kiegészítő szerelvényeinek elhelyezése, WC csatlakozó, alsó kifolyású WC-hez HL200/1, Lágy PE WC-csatlakozó elfordítható excenterrel (0-20mm) és többrészes DN110 ajakos tömítéssel, fehér",13,"db",0,0,{"$f":"ROUND(D183*F183, 0)","v":0},{"$f":"ROUND(D183*G183, 0)","v":0}]
[]
[29,"82-009-12.2.2-0135123","WC-csésze kiegészítő szerelvényeinek elhelyezése, WC csatlakozó, hátsó kifolyású WC-hez HL210.WE, PP WC-csatlakozó DN110, 0 - 90° -ig fokozat nélkül állítható, ajakos tömítés a kerámia fogadására, fehér",18,"db",0,0,{"$f":"ROUND(D185*F185, 0)","v":0},{"$f":"ROUND(D185*G185, 0)","v":0}]
[]
[30,"82-009-13.1-0337712","WC öblítőtartály felszerelése és bekötése, falsík elé szerelhető, műanyag GEBERIT AP117 alacsonyra szerelhető falon kívüli öblítőtartály, alpin fehér, Cikkszám: 136.530.11.1",28,"db",0,0,{"$f":"ROUND(D187*F187, 0)","v":0},{"$f":"ROUND(D187*G187, 0)","v":0}]
[]
[31,"82-009-15.1.1-0111525","Vizelde vagy piszoár berendezés elhelyezése, öblítőszelep, sarokszelep és bűzelzáró nélkül, porcelán, falra szerelhető vizelde ALFÖLDI/BÁZIS porcelán vizelde, felső bekötésű, 4332 00 01, fehér Csak szerelés!",17,"db",0,0,{"$f":"ROUND(D189*F189, 0)","v":0},{"$f":"ROUND(D189*G189, 0)","v":0}]
[]
[32,"82-009-16.2.1","Vizelde kiegészítő elemei, öblítőszelep, nyomógombos Ferro Presstige önelzáró piszoár öblítőszelep",17,"db",0,0,{"$f":"ROUND(D191*F191, 0)","v":0},{"$f":"ROUND(D191*G191, 0)","v":0}]
[]
[33,"82-009-17.1-0326192","Berendezési tárgyak szerelvényeinek felszerelése, sarokszelep szerelés SCHELL COMFORT sarokszelep 1/2\"-3/8\", meghosszabbított fali csatlakozóval, roppantógyűrűs csavarzat nélkül, zsírzókamrás felsőrésszel, dupla O gyűrűs tömítéssel, króm, Csz.: 05 212 06 99",109,"db",0,0,{"$f":"ROUND(D193*F193, 0)","v":0},{"$f":"ROUND(D193*G193, 0)","v":0}]
[]
[34,"82-009-18.2-0326174","Berendezési tárgyak szerelvényeinek felszerelése, fali kifolyószelep szerelés SCHELL COMFORT kifolyószelep 1/2\", zsírzókamrás felsőkamrás,Comfort fogantyúval, visszafolyásgátlóval, légbeszívóval, tömlővéggel, króm, Csz.: 03 351 06 99",4,"db",0,0,{"$f":"ROUND(D195*F195, 0)","v":0},{"$f":"ROUND(D195*G195, 0)","v":0}]
[]
[35,"82-009-19.2.3-0313914","Csaptelepek és szerelvényeinek felszerelése, zuhanycsaptelepek, falba süllyesztett zuhanycsaptelep (elektronikus vagy infravezérlésű, termosztátos vagy termosztát nélküli) B&K Idral időzített, nyomógombos, falon belüli, zuhanycsaptelep, fejben keverős, H-M vízre (15±5 mp), Cikkszám: BK03517",4,"db",0,0,{"$f":"ROUND(D197*F197, 0)","v":0},{"$f":"ROUND(D197*G197, 0)","v":0}]
[]
[36,"K-tétel","Zuhanyfej, Ferro Vandálbiztos 1 funkciós fejzuhany",4,"db",0,0,{"$f":"ROUND(D199*F199, 0)","v":0},{"$f":"ROUND(D199*G199, 0)","v":0}]
[]
[37,"82-009-19.3.2","Csaptelepek és szerelvényeinek felszerelése, mosdócsaptelepek, álló illetve süllyesztett mosdócsaptelep Ferro Presstige (nyomógombos) önelzáró mosdócsaptelep hideg vagy előkevert vízhez",14,"db",0,0,{"$f":"ROUND(D201*F201, 0)","v":0},{"$f":"ROUND(D201*G201, 0)","v":0}]
[]
[38,"82-009-19.3.2","Csaptelepek és szerelvényeinek felszerelése, mosdócsaptelepek, álló illetve süllyesztett mosdócsaptelep Ferro Presstige II (nyomógombos) önelzáró mosdócsaptelep átfolyós- és hőfokszabályzóval",13,"db",0,0,{"$f":"ROUND(D203*F203, 0)","v":0},{"$f":"ROUND(D203*G203, 0)","v":0}]
[]
[39,"82-009-21.1-0135301","Padló alatti, feletti illetve falba süllyeszthető bűzelzáró, padló alatti 1, 2, 3 ágú elhelyezése HL510NPr, Padlólefolyó DN40/50 vízszintes csatlakozóval, szigetelő karimával, \"Primus\" kiszáradás-védett vízbűzzárral, 123x123 mm műanyag rácstartóval, 115x115 mm nemesacél ráccsal, a csempézés idejére merevítő védőfedéllel. Terhelhetőség: 300kg",2,"db",0,0,{"$f":"ROUND(D205*F205, 0)","v":0},{"$f":"ROUND(D205*G205, 0)","v":0}]
[]
[40,"82-009-19.5.1-0318041","Csaptelepek és szerelvényeinek felszerelése, mosogató csaptelepek, fali mosogató csaptelep MOFÉM Junior egykaros falraszerelhető mosogatócsaptelep, ECO kerámia vezérlőegység forrázás elleni védelemmel, kr., kód: 152-0023-00",1,"db",0,0,{"$f":"ROUND(D207*F207, 0)","v":0},{"$f":"ROUND(D207*G207, 0)","v":0}]
[]
[41,"82-009-21.1-0135491","Padló alatti, feletti illetve falba süllyeszthető bűzelzáró, padló alatti 1, 2, 3 ágú elhelyezése HL541 PrimusBlue komplett csomag alacsony beépítésű (72mm) épített zuhanyzók készítésére rozsdamentes ráccsal és rácskerettel, \"PrimusBlue\", hajfogóval ellátott, kiszáradás esetén is bűzzáró szifonbetéttel, szigetelő készlettel, elhelyezésekor még nem kell tudnunk, hogy hol lesz a végleges padlószint, a lefolyó felesleges nyakrészét a betonozás után le kell vágni és a szigetelő gallért ekkor lehet a testhez illeszteni, teljesítmény 30 l/perc, beépítés 72-230mm",4,"db",0,0,{"$f":"ROUND(D209*F209, 0)","v":0},{"$f":"ROUND(D209*G209, 0)","v":0}]
[]
[42,"82-009-21.2-0135120","Padló alatti, feletti illetve falba süllyeszthető bűzelzáró, padló feletti vagy falba süllyeszthető elhelyezése HL21, Csepegtető tölcsér DN32 víz- és golyós bűzzárral",1,"db",0,0,{"$f":"ROUND(D211*F211, 0)","v":0},{"$f":"ROUND(D211*G211, 0)","v":0}]
[]
[43,"82-009-31.1.1-0135003","Vizes berendezési tárgyak bűzelzáróinak felszerelése, falikúthoz-mosogatóhoz DN 40-ig HL100G/40, Konyhai szifon DN40 x 6/4\", gömbcsuklóval",4,"db",0,0,{"$f":"ROUND(D213*F213, 0)","v":0},{"$f":"ROUND(D213*G213, 0)","v":0}]
[]
[44,"82-009-31.2-0135031","Vizes berendezési tárgyak bűzelzáróinak felszerelése, mosdóhoz, bidéhez HL132/30, Mosdószifon DN32 x 5/4\", magasságában állítható összekötőcsővel, lecsavarható búrával, rozettával",27,"db",0,0,{"$f":"ROUND(D215*F215, 0)","v":0},{"$f":"ROUND(D215*G215, 0)","v":0}]
[]
[45,"82-009-31.5-0135009","Vizes berendezési tárgyak bűzelzáróinak felszerelése, vizelde csészéhez HL130/40, Vizeldeszifon DN40, csatlakozó-mandzsettával és rozettával",17,"db",0,0,{"$f":"ROUND(D217*F217, 0)","v":0},{"$f":"ROUND(D217*G217, 0)","v":0}]
[]
[46,"82-016-1.1.6-0318731","Piperetárgyak elhelyezése egy-három helyen felerősítve, ruha- és törölközőakasztó MOFÉM Fiesta akasztó, dupla, rögzítő szettel, kód: 501-1030-00",4,"db",0,0,{"$f":"ROUND(D219*F219, 0)","v":0},{"$f":"ROUND(D219*G219, 0)","v":0}]
[]
[47,"82-016-1.1.8-0318741","Piperetárgyak elhelyezése egy-három helyen felerősítve, piperepolc MOFÉM Fiesta üvegpolc, 520 mm, kód: 501-1050-00",27,"db",0,0,{"$f":"ROUND(D221*F221, 0)","v":0},{"$f":"ROUND(D221*G221, 0)","v":0}]
[]
[48,"82-016-1.1.9-0318742","Piperetárgyak elhelyezése egy-három helyen felerősítve, WC-kefe tartóval MOFÉM Fiesta WC kefe fali tartóval, kód: 501-1080-00",31,"db",0,0,{"$f":"ROUND(D223*F223, 0)","v":0},{"$f":"ROUND(D223*G223, 0)","v":0}]
[]
[49,"82-016-1.2.3-0220606","Piperetárgyak elhelyezése négy vagy több helyen felerősítve, tükör, elektromos bekötés nélkül B&K rozsdamentes tükör 600x500x0,8 mm-es, elektropolírozott lemezből, Cikkszám: BK13603",27,"db",0,0,{"$f":"ROUND(D225*F225, 0)","v":0},{"$f":"ROUND(D225*G225, 0)","v":0}]
[]
[50,"82-016-2.1-0380086","Adagoló (szappan, tusfürdő, fertőtlenítő, kézkrém, illatosító) és tartozékainak elhelyezése, falra szerelt kivitelben SCA Hygiene Products TORK Mini folyékonyszappan adagoló, Elevation dizájn, ABS műanyag, 20,6x11,2x11,4 cm, fehér, Cikkszám: 561000",27,"db",0,0,{"$f":"ROUND(D227*F227, 0)","v":0},{"$f":"ROUND(D227*G227, 0)","v":0}]
[]
[51,"82-016-3.1-0380010","Papíradagolók elhelyezése falra szerelt kivitelben SCA Hygiene Products TORK Xpress Multifold Mini kéztörlő adagoló Elevation dizájn 200 lap ABS műanyag, 29,5x30,2x10,1 cm, fehér Cikkszám: 552100",27,"db",0,0,{"$f":"ROUND(D229*F229, 0)","v":0},{"$f":"ROUND(D229*G229, 0)","v":0}]
[]
[52,"82-016-3.1-0380043","Papíradagolók elhelyezése falra szerelt kivitelben SCA Hygiene Products TORK Mini Jumbo toalettpapír adagoló,19 cm átm., Elevation dizájn, ABS műanyag, 27,5x34,5x13,2 cm, fehér, Cikkszám: 555000",31,"db",0,0,{"$f":"ROUND(D231*F231, 0)","v":0},{"$f":"ROUND(D231*G231, 0)","v":0}]
[]
[53,"82-031-1.1.1.1.2-0557075","Vízszűrő elhelyezése és bekötése, visszamosható szűrőbetéttel, kézi visszaöblítéssel, kétoldalon menetes csatlakozással, DN 25 BWT Europafilter RS 1\" visszaöblíthető védőszűrő 3,5 m3/h",3,"db",0,0,{"$f":"ROUND(D233*F233, 0)","v":0},{"$f":"ROUND(D233*G233, 0)","v":0}]
[]
[null,null,"Munkanem összesen:",{"$nulls":4},{"$f":"ROUND(SUM(H129:H234),0)","v":0},{"$f":"ROUND(SUM(I129:I234),0)","v":0}]
[]
["Ssz.","Tételszám","Tétel szövege","Menny.","Egység","Anyag egységár","Díj egységre","Anyag összesen","Díj összesen"]
[1,"K-tétel","Légtechnikai vezeték szerelése, kör keresztmetszetű PPR vezeték szerelése, 100-as méretben",16,"m",0,0,{"$f":"ROUND(D238*F238, 0)","v":0},{"$f":"ROUND(D238*G238, 0)","v":0}]
[]
[2,"83-006-6","Cata Silentis 10 Timer falba építhető időzíthető szellőztető berendezés",4,"db",0,0,{"$f":"ROUND(D240*F240, 0)","v":0},{"$f":"ROUND(D240*G240, 0)","v":0}]
[]
[3,"K-tétel","Oldalfali kivezető zsalu",4,"db",0,0,{"$f":"ROUND(D242*F242, 0)","v":0},{"$f":"ROUND(D242*G242, 0)","v":0}]
[]
[4,"K-tétel","Légtechnikai bilincs vezeték részére, 100-as bilincs",12,"db",0,0,{"$f":"ROUND(D244*F244, 0)","v":0},{"$f":"ROUND(D244*G244, 0)","v":0}]
[]
[5,"K-tétel","Faláttörés vezeték részére",4,"db",0,0,{"$f":"ROUND(D246*F246, 0)","v":0},{"$f":"ROUND(D246*G246, 0)","v":0}]
[]
[null,null,"Munkanem összesen:",{"$nulls":4},{"$f":"ROUND(SUM(H240:H247),0)","v":0},{"$f":"ROUND(SUM(I240:I247),0)","v":0}]